bitfinex/quotes_ETHUSD_20240716
["timestamp","ask_amount","ask_price","bid_price","bid_amount"]
[1721102504555,2.22249754,3475.3,3474.9,0.875584]
[1721102505155,2.22249754,3475.3,3474.8,3.0]
[1721102505469,2.22249754,3475.3,3474.7,3.0]
[1721102506291,1.014,3475.1,3474.7,3.0]
[1721102506515,2.22249754,3475.1,3474.5,3.0]
[1721102506714,1.20849754,3475.0,3474.5,3.0]
[1721102508412,2.77003764,3474.9,3474.5,3.0]
[1721102508600,1.014,3474.7,3474.2,2.87831]
[1721102509880,1.014,3474.7,3474.3,3.0]
[1721102511812,2.3967,3474.9,3474.3,5.87821]
[1721102511980,2.3967,3474.9,3474.3,6.753862]
[1721102512181,1.014,3474.8,3474.3,6.753862]
[1721102512902,2.3967,3474.9,3474.4,2.87818]
[1721102513106,2.3967,3474.9,3474.4,2.87813]
[1721102513293,2.3967,3474.9,3474.6,2.87802]
[1721102516717,2.22249754,3475.0,3474.5,3.48217721]
[1721102516919,2.22249754,3475.0,3474.5,2.87808]
[1721102517921,1.014,3475.0,3474.6,2.87801]
[1721102518120,2.22249754,3475.0,3474.6,2.87801]
[1721102518830,2.22240595,3475.0,3474.6,2.87801]
[1721102518996,1.014,3475.0,3474.6,3.753628]
[1721102519615,2.22240595,3475.0,3474.6,3.753628]
[1721102519894,1.014,3475.0,3474.6,3.753628]
[1721102520306,1.20840595,3475.1,3474.7,2.87794]
[1721102520489,1.20840595,3475.2,3474.7,2.87794]
[1721102520718,1.20840595,3475.2,3474.7,3.48207121]
[1721102521231,1.20840595,3475.4,3475.0,2.87767]
[1721102521640,1.20840595,3475.5,3475.1,0.05754637]
[1721102521801,1.20840595,3475.7,3475.3,2.87742]
[1721102521996,1.20840595,3475.6,3475.0,2.87763]
[1721102522322,1.20840595,3475.6,3475.1,2.87756]
[1721102522496,1.20840595,3475.6,3475.2,2.87751]
[1721102523240,2.22240595,3475.5,3475.0,2.87763]
[1721102523595,2.22240595,3475.5,3475.1,2.8776]
[1721102524035,1.014,3475.3,3474.7,2.87793]
[1721102524337,1.014,3475.3,3474.8,3.0]
[1721102525024,1.20840595,3475.4,3475.0,2.87763]
[1721102525256,1.014,3475.5,3475.0,2.87763]
[1721102525419,2.22240595,3475.5,3475.0,5.34483]
[1721102525626,1.014,3475.5,3475.1,2.8776]
[1721102525845,2.22240595,3475.7,3475.1,2.8776]
[1721102526027,1.20840595,3475.6,3475.1,2.8776]
[1721102526206,2.22240595,3475.7,3475.1,2.8776]
[1721102527699,2.22240595,3475.7,3475.2,2.87752]
[1721102528232,1.20840595,3475.6,3475.2,2.87752]
[1721102528419,2.22240595,3475.7,3475.2,2.87752]
[1721102530395,3.3773,3475.5,3475.0,2.87764]
[1721102530600,1.014,3475.3,3475.0,2.87764]
[1721102530995,1.014,3475.3,3474.9,2.87777]
[1721102531201,1.014,3475.3,3474.8,3.0]
[1721102531398,1.014,3475.3,3474.8,2.87784]
[1721102531801,1.014,3475.3,3474.0,2.87848]
[1721102531802,1.014,3474.9,3474.0,2.87848]
[1721102532009,1.014,3474.3,3474.1,2.87841]
[1721102532836,2.2881,3474.2,3473.2,0.6040964]
[1721102533047,1.014,3473.9,3473.5,2.87892]
[1721102533243,1.014,3474.1,3473.5,2.87892]
[1721102533439,1.014,3473.9,3473.6,2.87885]
[1721102533644,1.014,3474.2,3473.6,2.87885]
[1721102534338,1.20834293,3474.4,3473.6,2.87885]
[1721102534547,1.20834293,3474.5,3473.6,2.87885]
[1721102535551,1.20834293,3474.5,3473.3,5.87909]
[1721102535552,4.08645293,3474.5,3473.3,5.87909]
[1721102535726,2.00443712,3474.4,3473.4,2.87897]
[1721102535923,0.79414318,3474.4,3473.5,5.87893]
[1721102536312,2.87811,3474.5,3473.5,5.87893]
[1721102536313,4.08645293,3474.5,3473.5,5.87893]
[1721102536841,1.20834293,3474.5,3473.6,2.87884]
[1721102537349,1.20641044,3474.5,3473.6,2.87884]
[1721102537513,3.57071044,3474.6,3473.6,2.87884]
[1721102537720,2.3643,3474.6,3473.6,2.87884]
[1721102538225,5.24234,3474.6,3473.6,2.87884]
[1721102538430,7.2085971,3474.6,3473.6,2.87884]
[1721102540510,2.87811,3474.5,3473.6,2.87884]
[1721102540706,2.87811,3474.5,3473.5,5.87893]
[1721102540947,2.87811,3474.5,3473.5,3.0]
[1721102541157,2.87811,3474.5,3473.3,3.0]
[1721102541446,4.89021551,3474.5,3473.5,2.87893]
[1721102541648,2.3841,3474.3,3473.6,3.0]
[1721102541823,2.3841,3474.3,3473.3,5.87904]
[1721102542153,2.3841,3474.3,3473.3,3.0]
[1721102542314,2.3841,3474.3,3473.4,0.587918]
[1721102542851,2.3841,3474.3,3473.5,2.87892]
[1721102543015,2.3841,3474.3,3473.6,3.0]
[1721102543418,2.3841,3474.3,3473.6,5.87885]
[1721102549846,2.87812,3474.5,3473.6,5.87885]
[1721102550053,4.45707707,3474.5,3473.6,5.87885]
[1721102554544,2.8782,3474.4,3473.6,3.0]
[1721102554743,2.8782,3474.4,3473.5,3.0]
[1721102555148,2.8782,3474.4,3473.5,5.87891]
[1721102556173,1.57895707,3474.5,3473.6,2.87884]
[1721102556348,1.016,3474.2,3473.7,3.6466758]
[1721102558069,2.3485,3474.6,3473.9,2.87859]
[1721102558255,1.016,3474.4,3473.9,2.87859]
[1721102559579,7.32,3474.8,3474.0,2.87846]
[1721102559871,1.016,3475.1,3474.4,2.87817]
[1721102560247,1.016,3474.9,3474.2,2.87834]
[1721102560573,1.016,3474.9,3474.3,2.87824]
[1721102560773,1.016,3474.9,3474.4,2.87816]
[1721102561071,1.016,3474.9,3474.4,3.19412842]
[1721102561284,1.016,3474.9,3474.1,2.87842]
[1721102566135,1.016,3474.9,3474.2,2.87834]
[1721102569297,2.22185962,3474.9,3474.2,2.87834]
[1721102569466,1.016,3474.9,3474.2,2.87834]
[1721102573958,1.016,3474.9,3473.8,2.3121]
[1721102574170,1.016,3474.9,3474.3,2.87821]
[1721102574171,2.4716,3474.8,3474.3,2.87821]
[1721102576315,3.67777551,3474.8,3474.3,2.87821]
[1721102576680,3.67777551,3474.8,3474.2,2.87835]
[1721102577381,1.20617551,3474.7,3474.2,2.87835]
[1721102578271,1.20617551,3474.7,3474.1,2.87838]
[1721102578468,2.22217551,3474.7,3473.9,3.799245]
[1721102578707,2.4984,3474.6,3473.9,3.799245]
[1721102579706,3.70457551,3474.6,3473.7,3.0]
[1721102580012,2.4984,3474.3,3473.8,3.0]
[1721102580216,2.22217551,3474.2,3473.6,5.8788]
[1721102580416,1.20617551,3474.1,3473.6,3.0]
[1721102580617,1.20617551,3474.1,3473.5,5.87893]
[1721102581229,1.20617551,3474.1,3473.5,3.0]
[1721102581587,1.20872018,3474.1,3473.5,3.0]
[1721102581923,1.20872018,3474.1,3473.5,5.87891]
[1721102585483,1.20872018,3474.2,3473.6,0.875801]
[1721102585688,3.70712018,3474.3,3473.6,0.875801]
[1721102588391,3.70712018,3474.3,3473.5,5.87891]
[1721102589229,2.22472018,3474.2,3473.5,5.87891]
[1721102589998,1.016,3474.2,3473.5,5.87891]
[1721102594802,3.70668261,3474.3,3473.5,5.87891]
[1721102595297,3.70668261,3474.3,3473.6,2.87885]
[1721102595613,1.20828261,3474.5,3473.9,2.87854]
[1721102596338,1.20828261,3474.4,3473.9,2.87854]
[1721102598612,1.20828261,3474.5,3473.9,2.87854]
[1721102598813,1.20828261,3474.5,3474.0,2.87851]
[1721102599009,1.20828261,3474.4,3474.0,2.87851]
[1721102599246,1.20828261,3474.6,3474.1,0.60590522]
[1721102599409,1.20828261,3474.6,3474.0,2.87851]
[1721102599818,3.70388261,3474.7,3474.0,2.87851]
[1721102600949,1.20828261,3474.6,3474.0,2.87851]
[1721102601161,1.20828261,3474.5,3474.0,2.87851]
[1721102601331,1.20828261,3474.6,3474.0,2.87851]
[1721102602117,2.22428261,3474.6,3474.0,2.87851]
[1721102603513,1.20828261,3474.5,3474.0,2.87851]
[1721102604558,2.22428261,3474.6,3474.0,2.87851]
[1721102604861,1.20828261,3474.5,3474.0,2.87851]
[1721102606331,1.20828261,3474.5,3473.7,3.0]
[1721102606537,2.2907,3474.3,3473.7,3.938674]
[1721102611767,2.2907,3474.3,3473.7,6.817434]
[1721102613699,3.57620005,3474.5,3473.8,2.87867]
[1721102613847,3.57620005,3474.5,3473.9,6.42160622]
[1721102614767,3.57620005,3474.5,3474.0,2.87852]
[1721102617064,1.016,3474.4,3473.9,3.54302622]
[1721102617280,2.22470005,3474.4,3473.9,3.0]
[1721102617594,2.22470005,3474.4,3473.9,5.8786]
[1721102619754,2.22494931,3474.4,3473.9,5.8786]
[1721102622593,1.20894931,3474.3,3473.9,5.8786]
[1721102623687,2.22494931,3474.4,3473.9,5.8786]
[1721102623886,1.20894931,3474.3,3473.9,5.8786]
[1721102624912,2.22494931,3474.4,3473.9,5.8786]
[1721102625541,1.20894931,3474.3,3473.9,5.8786]
[1721102625723,1.20894931,3474.4,3473.9,5.8786]
[1721102626209,1.20894931,3474.4,3473.9,7.003534]
[1721102627142,2.72076162,3474.7,3474.5,2.87811]
[1721102627292,1.20894931,3474.9,3474.6,2.87797]
[1721102627497,1.20894931,3475.0,3474.6,2.87797]
[1721102627827,1.20894931,3474.9,3474.6,2.87797]
[1721102628319,1.20894931,3475.0,3474.6,2.87797]
[1721102628520,4.94111231,3475.2,3474.6,2.87797]
[1721102628521,1.20894931,3474.9,3474.6,2.87797]
[1721102628906,1.20894931,3474.9,3474.5,2.87811]
[1721102629537,2.22488241,3474.8,3474.5,2.87811]
[1721102629898,2.22488255,3474.8,3474.5,2.87811]
[1721102630846,4.63618255,3474.8,3474.0,2.8785]
[1721102631049,4.63618255,3474.8,3474.1,3.0]
[1721102631197,1.016,3474.6,3474.1,3.0]
[1721102631848,2.22488255,3474.6,3474.1,3.0]
[1721102632246,2.22488255,3474.6,3473.8,5.28284]
[1721102632552,2.22488255,3474.6,3473.7,2.87877]
[1721102632553,1.016,3474.4,3473.7,2.87877]
[1721102632768,1.016,3474.2,3473.6,2.87885]
[1721102632917,1.20901473,3474.2,3473.6,2.87885]
[1721102634020,1.20901473,3474.2,3473.7,3.0]
[1721102635461,1.20901473,3474.2,3473.5,5.87891]
[1721102635623,1.20901473,3474.2,3473.5,6.804581]
[1721102636157,1.20901473,3474.2,3473.6,2.87884]
[1721102636325,1.20901473,3474.2,3473.7,3.0]
[1721102636869,3.62031473,3474.5,3473.9,2.87858]
[1721102637170,1.20901473,3474.4,3473.9,2.87858]
[1721102637473,3.62031473,3474.5,3473.9,2.87858]
[1721102637627,1.20901473,3474.4,3473.9,2.87858]
[1721102641951,1.20918664,3474.4,3473.9,2.87858]
[1721102642147,1.20918664,3474.4,3474.0,2.87852]
[1721102642361,1.20918664,3474.5,3474.1,2.3884]
[1721102642862,7.32,3474.7,3474.3,2.87827]
[1721102643031,7.32,3474.7,3474.5,2.8781]
[1721102643231,1.20918664,3475.0,3474.6,6.32648]
[1721102643428,1.20918664,3475.1,3474.6,6.32648]
[1721102643852,1.20918664,3475.2,3474.7,2.87794]
[1721102644060,1.20918664,3475.2,3474.8,2.87785]
[1721102644263,8.52918664,3475.3,3474.8,2.87785]
[1721102644670,1.20918664,3475.2,3474.8,2.87785]
[1721102645243,7.32,3475.3,3474.8,2.87785]
[1721102645244,8.52918664,3475.3,3474.8,2.87785]
[1721102647328,8.52918664,3475.3,3474.8,3.175254]
[1721102647529,7.32,3475.3,3475.0,2.87767]
[1721102648072,1.20918664,3475.5,3475.0,2.87767]
[1721102648234,1.20918664,3475.6,3475.0,2.87767]
[1721102649535,1.016,3475.3,3474.8,2.87785]
[1721102650636,1.016,3475.0,3474.4,3.0]
[1721102650794,1.016,3474.7,3474.4,3.0]
[1721102651858,1.016,3474.5,3474.2,3.0]
[1721102652979,1.016,3474.5,3474.0,5.87847]
[1721102653448,1.016,3474.3,3474.0,3.0]
[1721102653649,1.016,3474.3,3473.7,2.87873]
[1721102653969,1.016,3474.3,3473.7,3.699147]
[1721102655053,1.016,3474.3,3473.8,3.0]
[1721102657998,1.016,3474.3,3473.8,5.87867]
[1721102659371,1.016,3474.3,3473.8,3.0]
[1721102659703,9.806,3474.9,3474.0,2.87851]
[1721102659704,1.016,3474.5,3474.0,2.87851]
[1721102659873,1.016,3474.5,3474.0,3.53979322]
[1721102664368,1.016,3474.5,3474.0,2.87851]
[1721102666591,1.016,3474.5,3474.1,2.87841]
[1721102669676,1.20733341,3474.8,3474.4,2.87818]
[1721102669882,4.70933341,3474.9,3474.4,2.87818]
[1721102670385,1.20733341,3474.8,3474.4,2.87818]
[1721102671193,4.70933341,3474.9,3474.4,2.87818]
[1721102672143,3.69333341,3474.9,3474.4,2.87818]
[1721102672284,3.502,3474.9,3474.4,2.87818]
[1721102672487,1.20733341,3474.9,3474.4,3.697257]
[1721102672827,3.94805151,3475.1,3474.4,3.697257]
[1721102672828,4.66213341,3475.1,3474.4,3.697257]
[1721102673312,4.66213341,3475.1,3474.6,2.878]
[1721102673697,1.20733341,3475.2,3474.7,2.87792]
[1721102673916,4.66203002,3475.3,3474.7,2.87792]
[1721102674243,7.32,3475.4,3475.1,2.87761]
[1721102674408,12.3,3475.9,3475.4,2.87736]
[1721102674409,1.20723002,3475.8,3475.4,2.87736]
[1721102674716,1.016,3475.8,3475.4,2.87736]
[1721102675020,1.016,3475.5,3475.3,2.87742]
[1721102675222,1.016,3475.4,3475.3,2.87742]
[1721102675418,1.016,3475.4,3475.3,5.87742]
[1721102675915,1.016,3475.4,3475.3,3.0]
[1721102676082,1.016,3475.4,3475.2,3.0]
[1721102676282,1.016,3475.3,3475.2,3.0]
[1721102676584,1.016,3475.3,3475.2,3.82417452]
[1721102679399,1.016,3475.3,3475.2,6.70170452]
[1721102680194,1.016,3475.5,3475.2,6.70170452]
[1721102681301,1.016,3475.3,3475.2,3.0]
[1721102681498,1.016,3475.3,3475.1,2.87754]
[1721102681733,1.016,3475.3,3475.2,3.0]
[1721102683556,1.016,3475.3,3475.1,2.87754]
[1721102686218,1.016,3475.3,3475.0,2.87766]
[1721102686559,1.016,3475.1,3474.6,2.87796]
[1721102686712,2.4991,3475.4,3473.9,7.27]
[1721102686713,2.4991,3475.4,3474.7,2.87794]
[1721102686915,1.016,3474.8,3474.7,2.87794]
[1721102688847,1.016,3474.8,3474.7,3.453553]
[1721102690515,1.016,3474.8,3474.5,2.8781]
[1721102690717,1.016,3474.6,3474.5,2.8781]
[1721102690969,1.016,3474.8,3474.5,2.8781]
[1721102691319,1.016,3474.8,3474.6,3.0]
[1721102693449,1.016,3474.8,3474.5,2.8781]
[1721102694861,1.016,3474.8,3474.3,2.87823]
[1721102695078,1.016,3474.8,3474.4,3.0]
[1721102695948,1.016,3474.8,3474.4,5.87817]
[1721102696459,2.4991,3474.9,3474.4,6.988098]
[1721102697388,1.016,3475.0,3474.4,6.988098]
[1721102698203,1.016,3475.0,3474.5,2.87809]
[1721102698673,1.016,3475.0,3474.5,5.75612]
[1721102699261,1.016,3475.0,3474.6,2.87802]
[1721102700955,2.3194,3475.1,3474.6,2.87802]
[1721102701151,1.016,3475.0,3474.6,2.87802]
[1721102701806,1.016,3475.0,3474.6,3.24979222]
[1721102703362,1.016,3475.0,3474.7,2.2917]
[1721102703866,7.32,3475.4,3474.9,2.87778]
[1721102704171,3.63726142,3475.7,3474.9,2.87778]
[1721102704172,1.016,3475.2,3474.9,2.87778]
[1721102706205,1.016,3475.4,3474.9,2.87778]
[1721102707591,1.016,3475.4,3475.0,2.87768]
[1721102707909,1.20633206,3475.9,3475.2,2.3055]
[1721102708118,1.016,3475.7,3475.2,2.3055]
[1721102708410,1.016,3475.7,3475.2,5.18302]
[1721102709915,1.016,3475.7,3475.2,5.18297]
[1721102713373,1.206528,3475.9,3475.4,2.87735]
[1721102713706,1.016,3475.7,3475.4,2.87735]
[1721102715907,0.99585496,3475.7,3475.4,2.87735]
[1721102716664,0.99585496,3475.7,3475.5,2.87726]
[1721102717877,8.526528,3476.0,3475.5,2.87726]
[1721102718074,1.016,3475.6,3475.5,2.87726]
[1721102718272,1.016,3475.6,3475.3,2.87744]
[1721102719414,1.016,3475.6,3475.4,2.87736]
[1721102719926,1.016,3475.6,3475.1,2.87761]
[1721102720222,1.016,3475.3,3475.1,2.87761]
[1721102721620,1.016,3475.3,3475.1,3.983698]
[1721102723597,1.016,3475.5,3475.1,3.983698]
[1721102725291,2.22384448,3475.5,3475.1,3.983698]
[1721102725765,1.016,3475.5,3475.1,3.983698]
[1721102726327,1.20784448,3475.7,3475.3,2.87743]
[1721102726632,1.016,3475.6,3475.3,2.87743]
[1721102728534,1.016,3475.4,3475.3,2.87743]
[1721102728734,1.016,3475.4,3475.3,3.25304222]
[1721102729598,1.20784472,3475.8,3475.6,2.87716]
[1721102729794,1.81176708,3476.3,3475.6,2.87716]
[1721102729795,1.016,3475.7,3475.6,2.87716]
[1721102732508,1.016,3475.7,3475.5,2.87722]
[1721102732709,1.016,3475.6,3475.5,2.87722]
[1721102733029,1.016,3475.6,3475.5,3.71969922]
[1721102734439,1.20735339,3476.1,3475.6,2.87717]
[1721102734609,1.016,3475.7,3475.6,2.87717]
[1721102735613,1.20731449,3476.2,3475.5,3.71969922]
[1721102735859,1.81097173,3476.7,3476.0,2.87686]
[1721102735860,1.20731449,3476.5,3476.0,2.87686]
[1721102736019,1.016,3476.6,3476.2,2.87662]
[1721102736218,1.016,3476.3,3476.2,2.87662]
[1721102736454,1.016,3476.3,3476.2,3.686758]
[1721102739461,2.3002,3477.0,3476.2,3.686758]
[1721102739759,1.016,3476.4,3476.2,2.87662]
[1721102741161,2.3002,3477.0,3476.3,2.87662]
[1721102741162,3.50751449,3477.0,3476.3,2.87662]
[1721102741340,1.016,3476.4,3476.3,2.87662]
[1721102741738,1.016,3476.4,3476.1,2.87674]
[1721102742431,1.016,3476.2,3476.1,2.87674]
[1721102742628,1.016,3476.2,3476.1,3.68689]
[1721102749042,1.016,3476.2,3476.1,0.81015]
[1721102749386,1.016,3476.2,3475.9,2.87691]
[1721102749538,1.016,3476.0,3475.9,2.87691]
[1721102749735,1.016,3476.0,3475.9,5.87691]
[1721102755160,1.016,3476.3,3475.9,5.87691]
[1721102756402,1.016,3476.3,3476.0,1.113052]
[1721102759559,1.016,3476.3,3476.0,3.989912]
[1721102763710,2.3575,3476.8,3476.3,2.87661]
[1721102763711,1.016,3476.8,3476.3,2.87661]
[1721102763869,1.016,3476.8,3476.4,0.05752231]
[1721102764067,1.016,3476.8,3476.4,0.42617053]
[1721102764464,7.32,3476.9,3476.5,2.3905]
[1721102764785,1.016,3476.8,3476.6,0.05752162]
[1721102764986,1.016,3476.8,3476.5,2.44802216]
[1721102765681,1.016,3476.8,3476.5,2.3905]
[1721102766319,1.016,3476.8,3476.5,2.44802216]
[1721102766480,1.016,3476.8,3476.5,2.3905]
[1721102767369,1.016,3476.8,3476.5,2.95407582]
[1721102767800,1.016,3476.8,3476.5,3.01159768]
[1721102768103,1.016,3476.8,3476.5,2.95407582]
[1721102770121,1.016,3476.6,3476.5,0.56357582]
[1721102770321,1.016,3476.6,3476.3,2.87661]
[1721102771889,1.016,3476.5,3476.3,2.87661]
[1721102776013,3.57085187,3476.9,3476.3,2.87661]
[1721102776239,1.03362804,3476.8,3476.7,2.4123]
[1721102776512,1.016,3477.2,3476.7,5.28858]
[1721102777307,1.016,3477.2,3476.9,2.87605]
[1721102777512,1.016,3477.2,3477.0,0.816463]
[1721102780082,7.32,3477.3,3477.0,0.816463]
[1721102780306,1.016,3477.1,3477.0,3.692503]
[1721102780707,7.32,3477.3,3477.1,2.3394]
[1721102780927,1.016,3477.2,3477.1,2.3394]
[1721102781097,1.016,3477.2,3477.1,3.00463722]
[1721102781710,7.32,3477.3,3477.1,3.00463722]
[1721102781925,1.016,3477.2,3477.1,3.00463722]
[1721102782297,1.016,3477.2,3476.6,3.0]
[1721102782598,2.337,3477.3,3476.5,2.87644]
[1721102782599,1.016,3476.7,3476.5,2.87644]
[1721102784147,1.016,3476.7,3476.3,2.87659]
[1721102784310,1.016,3476.5,3476.3,2.87659]
[1721102785533,1.016,3476.7,3476.4,2.87653]
[1721102785696,1.016,3476.7,3476.5,0.287653]
[1721102786953,2.337,3477.3,3476.5,3.164083]
[1721102787164,1.016,3476.9,3476.6,2.8763]
[1721102788995,1.016,3476.9,3476.7,2.87627]
[1721102790955,7.32,3477.4,3476.7,2.87627]
[1721102791156,1.016,3477.0,3476.7,3.4803053]
[1721102791577,7.32,3477.4,3476.9,2.87612]
[1721102791902,1.016,3477.2,3476.9,2.87612]
[1721102792390,1.016,3477.0,3476.9,2.87612]
[1721102792896,7.32,3477.4,3476.9,2.87612]
[1721102793090,1.016,3477.2,3477.0,2.87602]
[1721102793995,7.32,3477.8,3477.0,2.87602]
[1721102794202,1.016,3477.3,3477.0,2.87602]
[1721102795299,1.016,3477.1,3477.0,2.87602]
[1721102797128,1.016,3477.1,3476.9,0.59001192]
[1721102797129,1.20562298,3478.2,3477.7,2.3103]
[1721102797308,1.016,3478.8,3478.0,2.87521]
[1721102797608,1.016,3478.3,3478.1,5.87511]
[1721102798574,1.016,3478.3,3478.2,2.87505]
[1721102798874,1.016,3478.3,3478.2,6.5357083]
[1721102801694,5.32098,3479.5,3478.2,6.5357083]
[1721102801884,1.016,3478.5,3478.3,3.0]
[1721102803415,1.016,3478.5,3478.3,5.87495]
[1721102803611,1.016,3478.7,3478.3,5.87495]
[1721102805113,1.016,3478.7,3478.4,2.87487]
[1721102805893,1.016,3478.9,3478.4,2.87487]
[1721102806623,7.32,3479.1,3478.4,2.87487]
[1721102806828,1.016,3478.9,3478.4,2.87487]
[1721102807389,1.016,3478.9,3478.5,2.87474]
[1721102808290,1.016,3478.9,3478.6,2.87471]
[1721102811829,1.016,3478.7,3478.3,3.0]
[1721102811996,1.016,3478.5,3478.2,3.0]
[1721102812196,1.016,3478.5,3478.3,2.87496]
[1721102819202,1.016,3478.5,3478.2,2.87502]
[1721102822308,1.016,3478.5,3478.2,3.450041]
[1721102824145,1.016,3478.5,3478.2,0.575021]
[1721102824327,1.016,3478.5,3478.1,3.0]
[1721102824529,1.016,3478.5,3478.1,2.87512]
[1721102826947,1.016,3478.7,3478.1,2.87512]
[1721102827768,1.016,3478.5,3478.1,2.87512]
[1721102829080,1.016,3478.5,3478.2,2.87503]
[1721102829243,1.016,3478.8,3478.2,2.87503]
[1721102829445,1.016,3478.8,3478.3,2.87494]
[1721102829954,1.016,3478.8,3478.4,2.87482]
[1721102830564,1.016,3478.8,3478.5,2.87477]
[1721102831749,1.016,3478.6,3478.5,2.87477]
[1721102832344,1.016,3478.6,3478.2,2.875]
[1721102832641,1.016,3478.6,3478.3,2.87495]
[1721102833377,1.016,3478.6,3478.4,2.87482]
[1721102834479,1.016,3478.6,3478.2,2.87503]
[1721102834668,1.016,3478.4,3478.2,2.87503]
[1721102835045,1.016,3478.6,3478.2,2.87503]
[1721102839348,1.016,3478.8,3478.3,2.87495]
[1721102840243,1.016,3478.8,3478.2,2.87496]
[1721102841086,2.3856,3479.0,3478.5,2.87475]
[1721102841261,1.64703529,3478.9,3478.2,2.87502]
[1721102841484,0.63106058,3478.8,3478.2,2.87502]
[1721102841985,0.63106058,3478.8,3478.0,2.87521]
[1721102842278,1.016,3478.7,3478.1,2.8751]
[1721102842482,0.6310673,3478.6,3478.2,0.575035]
[1721102843286,0.6310673,3478.6,3477.9,0.59824023]
[1721102843484,1.016,3478.5,3478.0,2.4998543]
[1721102843685,0.6310673,3478.4,3478.1,0.99994172]
[1721102843985,0.6310673,3478.4,3477.9,2.87528]
[1721102844184,0.6310673,3478.4,3478.0,2.49986135]
[1721102844391,0.6310673,3478.4,3478.1,1.89728258]
[1721102844564,1.016,3478.7,3478.1,0.89733816]
[1721102844752,0.63109905,3478.6,3478.1,0.89733816]
[1721102845374,0.63109905,3478.5,3478.1,0.89733816]
[1721102845589,1.20111547,3478.8,3478.1,0.89733816]
[1721102845888,0.63109948,3478.7,3478.1,0.89733816]
[1721102846186,0.63109962,3478.6,3478.2,0.37725282]
[1721102846388,0.63109962,3478.5,3478.2,0.37725282]
[1721102846589,0.63109962,3478.4,3478.2,0.37725282]
[1721102846886,1.20111547,3478.8,3478.2,0.37725282]
[1721102847091,0.63109896,3478.7,3478.0,2.87519]
[1721102847492,0.63109896,3478.7,3478.4,2.4685]
[1721102847800,7.32,3479.1,3478.5,0.99994004]
[1721102848091,1.64693857,3479.0,3478.4,2.4685]
[1721102848294,0.63093857,3478.9,3478.5,0.59416902]
[1721102848610,7.32,3479.1,3478.5,0.59416902]
[1721102848611,8.336,3479.1,3478.5,0.59416902]
[1721102848891,0.63098872,3479.0,3478.5,0.59416902]
[1721102849787,1.016,3478.6,3478.0,3.47342023]
[1721102849990,1.016,3478.6,3478.1,5.4997435]
[1721102850153,1.016,3478.6,3478.2,0.9998974]
[1721102850356,1.016,3479.0,3478.3,2.49976253]
[1721102850556,1.016,3478.8,3478.4,0.82671828]
[1721102850751,0.63099379,3478.7,3478.4,0.82671828]
[1721102850950,0.63099379,3478.7,3478.2,2.2942]
[1721102851798,0.63106922,3478.6,3478.2,2.2942]
[1721102851982,1.016,3478.8,3478.2,2.2942]
[1721102852314,1.016,3478.8,3478.1,5.87512]
[1721102852315,0.6310696,3478.7,3478.1,5.87512]
[1721102852505,0.6310696,3478.7,3478.2,0.99990906]
[1721102852707,0.6310696,3478.6,3478.3,0.98813693]
[1721102852894,1.016,3478.6,3477.9,0.59824023]
[1721102853085,0.63107134,3478.5,3478.0,2.49981705]
[1721102853403,0.63107134,3478.5,3478.1,0.99992682]
[1721102853577,0.63107134,3478.5,3478.0,3.0]
[1721102853782,0.63107134,3478.5,3478.1,1.64729771]
[1721102853991,0.63107134,3478.5,3478.1,0.64736102]
[1721102854511,1.016,3478.6,3478.1,0.64736102]
[1721102854811,0.63109382,3478.5,3478.1,0.64736102]
[1721102854964,2.22418643,3478.8,3478.3,2.48]
[1721102854965,1.20818643,3478.8,3478.3,2.48]
[1721102855171,0.63099764,3478.7,3478.3,2.48]
[1721102855409,2.4067,3479.0,3478.3,5.48]
[1721102855612,0.63101304,3478.9,3478.3,5.48]
[1721102855914,0.63101304,3478.9,3478.4,0.64736102]
[1721102856083,0.63101304,3478.9,3478.4,3.64736102]
[1721102857299,0.63101304,3478.9,3478.4,6.52223102]
[1721102858274,0.63101304,3478.8,3478.4,6.52223102]
[1721102858471,8.52806307,3479.1,3478.4,6.52223102]
[1721102858689,0.63100576,3479.0,3478.5,0.8343392]
[1721102858907,0.63100573,3478.9,3478.5,3.7091292]
[1721102859069,0.63100573,3478.8,3478.5,0.8343392]
[1721102859276,2.77406307,3479.4,3478.6,0.99976606]
[1721102859576,1.016,3479.2,3478.7,0.54360344]
[1721102859802,1.016,3479.0,3478.7,0.54360344]
[1721102860009,0.63091556,3478.9,3478.7,0.54360344]
[1721102860799,1.016,3478.9,3478.7,0.54360344]
[1721102862473,1.20806307,3479.2,3478.7,0.54360344]
[1721102862474,1.016,3479.2,3478.7,0.54360344]
[1721102862706,0.63096058,3479.1,3478.8,0.34183634]
[1721102863980,8.52806307,3479.6,3478.9,2.4396]
[1721102864315,8.52806307,3479.6,3478.9,8.31405]
[1721102864316,0.63084849,3479.5,3478.9,8.31405]
[1721102864519,0.63084849,3479.5,3479.0,0.59626044]
[1721102864690,7.32,3479.6,3479.0,3.59626044]
[1721102864895,7.32,3479.6,3479.0,6.47063044]
[1721102865216,7.32,3479.6,3479.0,3.59626044]
[1721102865418,1.016,3479.3,3479.0,3.0]
[1721102865715,1.016,3479.3,3478.8,0.34183634]
[1721102866419,2.2918,3479.5,3478.8,0.34183634]
[1721102866710,1.016,3479.2,3478.8,0.34183634]
[1721102867014,2.2918,3479.5,3479.0,2.87437]